Cogmind - Beta 13 @@@ ROGUE MODE // 2024.04.02 @ 16:57:18 Player: Grausamkeeit Result: Destroyed by G-47 Trooper with Particle Gun Performance ------------- Evolutions (0) 0 Regions Visited (1) 200 Robots Destroyed (13) 65 Value Destroyed (395) 395 Prototype IDs (2) 40 Alien Tech Used (0) 0 Bonus (0) 0 TOTAL SCORE: 700 Bonus ------- None Cogmind --------- Core Integrity 0/250 Matter 289/300 Energy 100/100 System Corruption 0% Temperature Hot (266) Movement Walking (120) Location -10/Materials Parts ------- > --- POWER (1) -------- (None) > --- PROPULSION (2) --- Aluminum Leg > --- UTILITY (2) ------ (None) > --- WEAPON (2) ------- Particle Gun > --- INVENTORY (5) ---- Aluminum Leg Flight Unit Flight Unit Heat Sink Light Assault Rifle Peak State ------------ > --- POWER ------------ Ion Engine > --- PROPULSION ------- Aluminum Leg Aluminum Leg > --- UTILITY ---------- Small Matter Pod Propulsion Shielding > --- WEAPON ----------- Particle Gun Assault Rifle > --- INVENTORY -------- Aluminum Leg Flight Unit Heat Sink Light Assault Rifle [Rating: 8] Favorites ----------- Power Ion Engine Engine Ion Engine Propulsion Aluminum Leg Leg Aluminum Leg Wheel Wheel Utility Small Matter Pod Device Heat Sink Storage Small Matter Pod Protection Propulsion Shielding Weapon Assault Rifle Energy Gun Particle Gun Energy Cannon Beam Cannon Ballistic Gun Assault Rifle Launcher Grenade Launcher Build | -11 -10 ------- Run | Yrd Mat Slots Evolved . | . . Power . | . . Propulsion . | . . Utility . | . . Weapon . | . . Parts Attached 19 | 7 12 Power 4 | 2 2 Engine 4 | 2 2 Core . | . . Reactor . | . . Propulsion 6 | 2 4 Treads . | . . Leg 4 | . 4 Wheel 2 | 2 . Hover . | . . Flight . | . . Utility 3 | 1 2 Device 1 | . 1 Storage 1 | 1 . Processor . | . . Hackware . | . . Protection 1 | . 1 Artifact . | . . Weapon 6 | 2 4 Energy Gun 1 | . 1 Energy Cannon 1 | . 1 Ballistic Gun 3 | 2 1 Ballistic Cannon . | . . Launcher 1 | . 1 Special Weapon . | . . Impact Weapon . | . . Slashing Weapon . | . . Piercing Weapon . | . . Special Melee Weapon . | . . Unidentified Prototypes . | . . Parts Lost 9 | . 9 Power 2 | . 2 Propulsion 2 | . 2 Utility 2 | . 2 Weapon 3 | . 3 Highest Loss Streak 5 | . 5 To Critical Strikes . | . . Average Slot Usage (%) 91 | . 91 Engine 10 | . 10 Leg 25 | . 25 Wheel 1 | . 1 Device 8 | . 8 Storage 13 | . 13 Protection 3 | . 3 Energy Gun 3 | . 3 Energy Cannon 5 | . 5 Ballistic Gun 9 | . 9 Launcher 7 | . 7 Naked Turns . | . . Heaviest Build 13 | 9 13 Greatest Support 20 | 20 20 Greatest Overweight (x) 1 | . 1 Average Overweight (x) . | . . Largest Inventory Capacity 5 | 5 5 Average Capacity 5 | 5 5 Most Carried 5 | 5 5 Average Carried 4 | 3 4 Final Capacity 5 | 5 5 Final Carried 5 | 5 5 Class Distribution -------------------- 85% | Mutant 14% | Scavenger-Mutant Dominant Class ---------------- Mutant | -10/Materials Resources | -11 -10 ----------- Run | Yrd Mat Matter Collected 491 | 310 181 Remotely . | . . Salvage Created 306 | 65 241 Parts 23 | 4 19 Haulers Intercepted . | . . Recyclers Shooed . | . . Parts Field Recycled . | . . Retrieved Matter . | . . Parts Self-Destructed . | . . Prevented . | . . Kills | -11 -10 ------- Run | Yrd Mat Combat Hostiles Destroyed 11 | 1 10 Guns 4 | 1 3 Cannons 4 | . 4 AOE 3 | . 3 Classes Destroyed 4 | 2 2 Worker 1 | 1 . Builder 1 | . 1 Swarmer 2 | . 2 Grunt 9 | 1 8 Best Kill Streak 4 | 1 4 Combat Bots Only 4 | 1 4 Max Kills in Single Turn 2 | 1 2 Gunslinging . | . . Exploded 2 | . 2 Melee . | . . Uniques/NPCs Destroyed . | . . Combat | -11 -10 -------- Run | Yrd Mat Hostile Shots Fired 119 | 6 113 Missed 31 | 1 30 Damage Taken 995 | 51 944 Core 257 | . 257 Absorbed by Shields . | . . Redirected to Shielding 48 | . 48 Regen/Repaired (Parts) 18 | . 18 Core Remaining (%) 100 | 100 . Volleys Fired 64 | 7 57 Largest 2 | 2 2 Hottest 90 | 40 90 Shots Fired 97 | 14 83 Gun 62 | 14 48 Cannon 27 | . 27 Launcher 8 | . 8 Special . | . . Kinetic 43 | 14 29 Thermal 46 | . 46 Explosive 8 | . 8 Electromagnetic . | . . Robot Hit Streak 6 | 3 6 Robot Miss Streak 4 | 4 4 Penetration Max . | . . Secondary Targets . | . . Shots Hit Robots 45 | 6 39 Core Hits 19 | 3 16 Critical Kills . | . . Critical Parts Destroyed . | . . Critical Strikes . | . . Melee Attacks . | . . Impact . | . . Slashing . | . . Piercing . | . . Sneak Attacks . | . . Combat Hostiles . | . . Follow-up Attacks . | . . Damage Inflicted 1019 | 77 942 Guns 356 | 77 279 Cannons 209 | . 209 Explosions 454 | . 454 Melee . | . . Ramming . | . . Kinetic 235 | 77 158 Thermal 330 | . 330 Explosive 454 | . 454 Electromagnetic . | . . Impact . | . . Slashing . | . . Piercing . | . . Highest Corruption . | . . Average Corruption . | . . Corruption Purged . | . . Corruption Blocked . | . . Overload Shots . | . . Overflow Damage 15 | . 15 Projectiles 15 | . 15 Explosions . | . . Melee . | . . Knockbacks . | . . Impact . | . . Kinetic . | . . Secondary . | . . Self-Inflicted Damage 32 | . 32 Shots 1 | . 1 Rammed . | . . Targets Rammed . | . . Kicked . | . . Crushed . | . . Highest Temperature 240 | 1 240 Average Temperature 83 | 1 88 Received Heat Transfer 393 | 30 363 Siege Activations . | . . Robots Corrupted . | . . Combat Hostiles . | . . Parts Fried . | . . Impact Corruptions . | . . Robots Melted . | . . Combat Hostiles . | . . Parts Melted 2 | . 2 Heat Transferred 740 | . 740 Parts Sabotaged . | . . Parts Stolen . | . . Parts Stripped . | . . Power Chain Reactions . | . . Alert | -11 -10 ------- Run | Yrd Mat Peak Influence 368 | 25 368 Initial 16 | . 16 Average 144 | 11 179 Maximum Alert Level 1 | . 1 Low Security (%) 74 | 100 67 Level 1 25 | . 32 Level 2 . | . . Level 3 . | . . Level 4 . | . . Level 5 . | . . High Security . | . . Max Security . | . . Squads Dispatched 4 | . 4 Investigation 1 | . 1 Extermination . | . . Reinforcement 3 | . 3 Assault . | . . Garrison . | . . Intercept . | . . Searches Triggered . | . . Construction Impeded . | . . Haulers Reinforced . | . . Active Scanning Responses . | . . Cargo Convoy Interrupts . | . . Stealth | -11 -10 --------- Run | Yrd Mat Distress Signals 1 | . 1 Communications Jammed . | . . Distress Signals . | . . Times Spotted 16 | 1 15 Peak Tracking Total 4 | 1 4 Tactical Retreats . | . . Traps | -11 -10 ------- Run | Yrd Mat Traps Triggered 1 | . 1 Indirectly . | . . Trap Hack Attempts . | . . Triggered . | . . Disarmed . | . . Reprogrammed . | . . Reused . | . . Traps Extracted . | . . Installed . | . . Triggered . | . . Machines | -11 -10 ---------- Run | Yrd Mat Machines Disabled 5 | . 5 Max in Single Turn 2 | . 2 Machines Repaired . | . . Machines Dismantled . | . . Machines Sabotaged . | . . Overloaded Fab Kills . | . . Hacking | -11 -10 --------- Run | Yrd Mat Machines Accessed 2 | . 2 Terminals 1 | . 1 Fabricators . | . . Repair Stations 1 | . 1 Recycling Units . | . . Scanalyzers . | . . Garrison Access . | . . Total Hacks 16 | . 16 Successful 8 | . 8 Failed 8 | . 8 Catastrophic 1 | . 1 Database Lockouts . | . . Manual . | . . Terminals 9 | . 9 Fabricators . | . . Repair Stations 7 | . 7 Recycling Units . | . . Scanalyzers . | . . Garrison Access . | . . Terminal Hacks 5 | . 5 Record 3 | . 3 Prototype ID Bank 1 | . 1 Dispatch Records 1 | . 1 Fabricator Hacks . | . . Repair Station Hacks 3 | . 3 Scan Component 2 | . 2 Repair 1 | . 1 Recycling Unit Hacks . | . . Scanalyzer . | . . Garrison Access Hacks . | . . Unauthorized Hacks . | . . Terminals . | . . Fabricators . | . . Repair Stations . | . . Recycling Units . | . . Scanalyzers . | . . Garrison Access . | . . Data Cores Recovered . | . . Used . | . . Hacking Detections 2 | . 2 Full Trace Events 1 | . 1 Feedback Events . | . . Feedback Blocked . | . . Robot Schematics Acquired . | . . Robots Built . | . . Authchips . | . . Time . | . . Total Robot Build Rating . | . . Part Schematics Acquired . | . . Parts Built . | . . Authchips . | . . Time . | . . Total Part Build Rating . | . . Parts Repaired 1 | . 1 Time 26 | . 26 Parts Recycled . | . . Recycled Matter . | . . Retrieved Matter . | . . Retrieved Components . | . . Parts Scanalyzed . | . . Part Schematics Acquired . | . . Parts Damaged . | . . Bothacking | -11 -10 ------------ Run | Yrd Mat Used RIF Installer . | . . Robots Hacked . | . . Non-combat . | . . Combat . | . . Robot Hacks Applied . | . . Relay Couplers Released . | . . Fabnet Peak Effective % . | . . Robots Rewired . | . . Allies Hacked . | . . Hacks Repelled . | . . Allies | -11 -10 -------- Run | Yrd Mat Total Allies . | . . Largest Group . | . . Highest-Rated Group . | . . Highest-Rated Ally . | . . Total Orders . | . . Ally Attacks . | . . Total Damage . | . . Kills . | . . Allies Corrupted . | . . Allies Melted . | . . Intel | -11 -10 ------- Run | Yrd Mat Robot Analysis Total . | . . Derelict Logs Recovered . | . . Drone Launches . | . . Drone Recoveries . | . . Exploration | -11 -10 ------------- Run | Yrd Mat Turns Passed 644 | 134 510 Spaces Moved 381 | 89 292 Core 24 | 24 . Treads . | . . Legs 262 | . 262 Wheels 95 | 65 30 Hover . | . . Flight . | . . Fastest Speed 50 | 50 80 Average Speed 105 | 71 116 Slowest Speed 120 | 80 120 Overloaded Moves . | . . Propulsion Burnouts . | . . Robots Hopped . | . . Cave-ins Triggered . | . . Exploration Rate (%) 19 | 7 31 Regions Visited 1 Branch Regions . Pre-discovered Areas . | . . Known Exits Taken . | . . Unknown Exits Taken 1 | 1 . Scrap Searched . | . . Spaces Dug . | . . Terrain Destroyed 26 | . 26 Melee . | . . Projectile . | . . AOE 26 | . 26 Terrain Rammed . | . . Walls Destroyed . | . . Machines Disabled . | . . Actions | -11 -10 --------- Run | Yrd Mat Total 526 | 146 380 Wait 37 | 32 5 Move 380 | 88 292 Hop . | . . Pick Up 20 | 11 9 Fast Attach . | . . Attach 13 | 6 7 Detach 1 | . 1 Swap 6 | 1 5 Drop 5 | 1 4 Fire 64 | 7 57 Melee . | . . Ram . | . . Kick . | . . Crush . | . . Escape Stasis . | . . Rewire . | . . Trap . | . . Miscellaneous . | . . Route ------- -11/Scrapyard -10/Materials History --------- Turn | Location | Event 2 | -11/Scrapyard | Met Revision 17 64 | -11/Scrapyard | Discovered new exit (range 8) 135 | -11/Scrapyard | Entered Materials 303 | -10/Materials | Build established: Mutant 357 | -10/Materials | Repaired Ion Engine? 474 | -10/Materials | Core integrity fell below 50% 629 | -10/Materials | Core integrity fell below 20% 645 | -10/Materials | Destroyed by G-47 Trooper with Particle Gun Last Messages --------------- 00613_ Sml. Matter Pod destroyed. 00614_ Electrolysis Chamber disabled. 00618_ K-01 Serf collects debris. 00621_ ALERT: Hostiles spotted, dispatching reinforcements to Terminal M005. 00622_ Triggered Explosive Trap. 00622_ An explosion rips through the floor. 00622_ K-01 Serf collects debris. 00624_ Ion Engine destroyed. 00630_ Aluminum Leg destroyed. 00632_ Critical hit (Burn: +37). 00635_ K-01 Serf collects debris. 00637_ Propulsion Shielding destroyed. 00637_ U-05 Engineer lays Concrete. 00638_ U-05 Engineer builds a Wall. 00640_ U-05 Engineer lays Concrete. 00641_ Assault Rifle destroyed. 00643_ U-05 Engineer builds a Wall. 00645_ Critical hit (Burn: +37). [Achievement: First Step to Greatness] Map ----- +----------------------------------------------------+ | #+##+## #########+########????????????????????? | | [[ ????????????????????? | | [ #??????#####????????????????? | | ####+## #??????# #????????????????? | | ## ######## #????????????????? | | "" ## #????????????????? | | " ## [ +????????????????? | | / #????????????????? | | " """ # #### [ """ #????????????????? | | " """ ###+####! """ ##???????????????? | | " """ #^ [# """ """ #???????????????? | | # + """ #???????????????? | | #######^ # """ #???????????????? | | ??????#^"*" ## " #???????????????? | | ??????# "R" ## "" #???????????????? | | ??????#^""" ## = """ ##########???????????????? | | ??????# ## #????????????????????????? | | ??????######### ###??????????????????????? | | ??????#########+# " # #??????????????????????? | | ??????# # #####????????????????????? | | ??????# # ### ####?????????????????? | | ??????# """ # # #?????????????????? | | ??????# """ + u #?????????????????? | | ??????# """ """# g# "" #?????????????????? | | ??????# T"# g T" #?????????????????? | | ??????# """# "" #@ "" #?????????????????? | | ??????# # # #?????????????????? | | ??????########### ########?????????????????? | | ????????????????# " #????????????????????????? | | ????????????????# "" #????????????????????????? | | ????????????????# """ #????????????????????????? | | ????????????????# #????????????????????????? | | ????????????????# ????????????????????????? | | ??????????????? ???????????????????????? | | ?????????????? ??????????????????????? | | ?????????????? """ """ ??????????????????????? | | ????????????? """ """ "?????????????????????? | | ???????????? """ """ ""????????????????????? | | ????????????? ??? ???????????????????? | | ?????????????????? ??? ????????????????????? | | ?????????????????? ???? ????????????????????? | | ??????????????????###+????# ????????????????????? | | ???????????????????????????? ???????????????????? | | ?????????????????????????????????????????????????? | | ?????????????????????????????????????????????????? | | ?????????????????????????????????????????????????? | | ?????????????????????????????????????????????????? | | ?????????????????????????????????????????????????? | | ?????????????????????????????????????????????????? | | ?????????????????????????????????????????????????? | +----------------------------------------------------+ Best States ------------- Heat Dissipation 35 Energy Generation 10 Energy Capacity 250 Matter Stores 350 Matter Capacity 350 Sight Range 16 Terrain Scan Density 10 Propulsion Shielding 33 Evasion (%) 55 Item Schematics ----------------- None Robot Schematics ------------------ None Fabricated ------------ Nothing Alien Tech Used ----------------- None Achievements -------------- First Step to Greatness One Hack Too Far Part-time Mechanic Uninvited Guest Challenges ------------ None Game ------ Seed MatterPotentialBoregun Manual? 0 Play Time 00:28:00 Cumulative 0.4 hours Start 2024.04.02 @ 16:20:17 End 2024.04.02 @ 16:57:18 Sessions 1 Manual Loads 0 Difficulty Rogue Special Mode None Game No. 1 Rogue 1 Adventurer 0 Explorer 0 Win Type - Total 0 Types 0/0/0/0/0/0/0/0/0 Lore% 0 Gallery% 1 Achievement% 1 Wizard Run 0 Options --------- Layout 1 ASCII 0 Keyboard 0 Movement Mouse Keybinds 0 Fullscreen 2 Font 32/SmallcapsGlow Map View 50x35 Zoom Use 0% Tactical HUD 1 Map Filters NONE Filters NONE Steam 0 RUN: 002a1835-cc14-4048-b2f3-bd70cbe9d4a9